fUSD/lending_fUSD_20260410
["ID","MTS","AMOUNT","RATE_DAILY","PERIOD"]
[420206370,1775776265718,-983.750695,0.00015998,2]
[420206371,1775776265740,-158.160552,0.00015998,2]
[420206372,1775776265751,-324.359325,0.00015998,2]
[420206373,1775776265772,-268.950056,0.00015998,2]
[420206374,1775776265783,-983.750695,0.00015998,2]
[420206375,1775776265802,-571.558803,0.00015998,2]
[420206376,1775776265812,-158.160552,0.00015998,2]
[420206377,1775776265833,-324.359325,0.00015998,2]
[420206378,1775776265843,-151.0,0.00015998,2]
[420206379,1775776265853,-571.558803,0.00015998,2]
[420206380,1775776265870,-983.750695,0.00015998,2]
[420206381,1775776265881,-158.160552,0.00015998,2]
[420206382,1775776265891,-151.0,0.00015998,2]
[420206383,1775776265904,-324.359325,0.00015998,2]
[420206384,1775776265922,-1563.494859,0.00015998,2]
[420206385,1775776265932,-571.558803,0.00015998,2]
[420206386,1775776265944,-151.0,0.00015998,2]
[420206387,1775776265957,-983.750695,0.00015998,2]
[420206388,1775776265966,-151.0,0.00015998,2]
[420206389,1775776265982,-324.359325,0.00015998,2]
[420206390,1775776265991,-1563.494859,0.00015998,2]
[420206391,1775776266001,-151.0,0.00015998,2]
[420206392,1775776266012,-1563.494859,0.00015998,2]
[420206393,1775776266025,-1563.494859,0.00015998,2]
[420206394,1775776266038,-295.041581,0.00015998,2]
[420206395,1775776266049,-547.679731,0.00015998,2]
[420206396,1775776266060,-300.141804,0.00015998,2]
[420206397,1775776266070,-295.041581,0.00015998,2]
[420206398,1775776266080,-547.679731,0.00015998,2]
[420206399,1775776266090,-151.0,0.00015998,2]
[420206400,1775776266100,-300.141804,0.00015998,2]
[420206401,1775776266109,-295.041581,0.00015998,2]
[420206402,1775776266119,-812.070344,0.00015998,2]
[420206403,1775776266128,-547.679731,0.00015998,2]
[420206404,1775776266138,-213.981538,0.00015998,2]
[420206405,1775776266148,-151.0,0.00015998,2]
[420206406,1775776266158,-300.141804,0.00015998,2]
[420206407,1775776266167,-812.070344,0.00015998,2]
[420206408,1775776266177,-295.041581,0.00015998,2]
[420206409,1775776266187,-547.679731,0.00015998,2]
[420206410,1775776266197,-213.981538,0.00015998,2]
[420206411,1775776266206,-300.141804,0.00015998,2]
[420206412,1775776266216,-812.070344,0.00015998,2]
[420206413,1775776266225,-213.981538,0.00015998,2]
[420206414,1775776266236,-651.716572,0.00015998,2]
[420206415,1775776266246,-213.981538,0.00015998,2]
[420206416,1775776266256,-227.829619,0.00015998,2]
[420206417,1775776266266,-2068.862999,0.00015998,2]
[420206418,1775776266282,-651.716572,0.00015998,2]
[420206419,1775776266292,-227.829619,0.00015998,2]
[420206420,1775776266302,-651.716572,0.00015998,2]
[420206421,1775776266321,-2068.862999,0.00015998,2]
[420206422,1775776266330,-812.070344,0.00015998,2]
[420206423,1775776266340,-227.829619,0.00015998,2]
[420206424,1775776266353,-651.716572,0.00015998,2]
[420206425,1775776266373,-227.829619,0.00015998,2]
[420206426,1775776266383,-151.0,0.00015998,2]
[420206427,1775776266404,-151.0,0.00015998,2]
[420206428,1775776266414,-543.66552,0.00015998,2]
[420206429,1775776266428,-647.556024,0.00015998,2]
[420206430,1775776266440,-2068.862999,0.00015998,2]
[420206431,1775776266451,-151.0,0.00015998,2]
[420206432,1775776266460,-543.66552,0.00015998,2]
[420206433,1775776266473,-647.556024,0.00015998,2]
[420206434,1775776266490,-519.317961,0.00015998,2]
[420206435,1775776266501,-151.0,0.00015998,2]
[420206436,1775776266511,-2068.862999,0.00015998,2]
[420206437,1775776266524,-647.556024,0.00015998,2]
[420206438,1775776266534,-543.66552,0.00015998,2]
[420206439,1775776266557,-519.317961,0.00015998,2]
[420206440,1775776266567,-151.0,0.00015998,2]
[420206441,1775776266583,-647.556024,0.00015998,2]
[420206442,1775776266595,-519.317961,0.00015998,2]
[420206443,1775776266604,-543.66552,0.00015998,2]
[420206444,1775776266618,-519.317961,0.00015998,2]
[420206445,1775776266631,-151.0,0.00015998,2]
[420206446,1775776266641,-919.109647,0.00015998,2]
[420206447,1775776266650,-151.0,0.00015998,2]
[420206448,1775776266662,-151.0,0.00015998,2]
[420206449,1775776266675,-725.348432,0.00015998,2]
[420206450,1775776266684,-919.109647,0.00015998,2]
[420206451,1775776266710,-151.0,0.00015998,2]
[420206452,1775776266720,-311.689616,0.00015998,2]
[420206453,1775776266762,-725.348432,0.00015998,2]
[420206454,1775776266772,-919.109647,0.00015998,2]
[420206455,1775776266788,-311.689616,0.00015998,2]
[420206456,1775776266798,-725.348432,0.00015998,2]
[420206457,1775776266807,-919.109647,0.00015998,2]
[420206458,1775776266823,-311.689616,0.00015998,2]
[420206459,1775776266832,-725.348432,0.00015998,2]
[420206460,1775776266848,-311.689616,0.00015998,2]
[420206461,1775776266858,-1164.823807,0.00015998,2]
[420206462,1775776266867,-151.0,0.00015998,2]
[420206463,1775776266889,-1164.823807,0.00015998,2]
[420206464,1775776266911,-151.0,0.00015998,2]
[420206465,1775776266921,-190.125698,0.00015998,2]
[420206466,1775776266948,-1164.823807,0.00015998,2]
[420206467,1775776266958,-190.125698,0.00015998,2]
[420206468,1775776266968,-1164.823807,0.00015998,2]
[420206469,1775776267005,-190.125698,0.00015998,2]
[420206470,1775776267017,-213.95582,0.00015998,2]
[420206471,1775776267027,-830.923491,0.00015998,2]
[420206472,1775776267057,-213.95582,0.00015998,2]
[420206473,1775776267107,-830.923491,0.00015998,2]
[420206474,1775776267129,-213.95582,0.00015998,2]
[420206475,1775776267150,-1719.812644,0.00015998,2]
[420206476,1775776267178,-430.346022,0.00015998,2]
[420206477,1775776267188,-830.923491,0.00015998,2]
[420206478,1775776267214,-1719.812644,0.00015998,2]
[420206479,1775776267224,-430.346022,0.00015998,2]
[420206480,1775776267235,-830.923495,0.00015998,2]
[420206481,1775776267255,-151.0,0.00015998,2]
[420206482,1775776267265,-1719.812644,0.00015998,2]
[420206483,1775776267276,-175.794679,0.00015998,2]
[420206484,1775776267305,-430.346022,0.00015998,2]
[420206485,1775776267329,-1719.812643,0.00015998,2]
[420206486,1775776267360,-175.794679,0.00015998,2]
[420206487,1775776267424,-190.125702,0.00015998,2]
[420206488,1775776267436,-430.346028,0.00015998,2]
[420206489,1775776267459,-213.955811,0.00015998,2]
[420206490,1775776267470,-175.794679,0.00015998,2]
[420206491,1775776267488,-1449.704228,0.00015998,2]
[420206492,1775776267498,-175.794686,0.00015998,2]
[420206493,1775776267510,-1433.227279,0.00015998,2]
[420206494,1775776267529,-532.648018,0.00015998,2]
[420206495,1775776267553,-1449.704228,0.00015998,2]
[420206496,1775776267564,-1433.227279,0.00015998,2]
[420206497,1775776267582,-532.648018,0.00015998,2]
[420206498,1775776267594,-1449.704228,0.00015998,2]
[420206499,1775776267623,-408.067147,0.00015998,2]
[420206500,1775776267641,-1433.227279,0.00015998,2]
[420206501,1775776267658,-532.648018,0.00015998,2]
[420206502,1775776267677,-3916.046641,0.00015999,2]
[420206503,1775776267719,-1186.8985074,0.00015999,2]
[420206504,1775776267754,-500.0,0.00015999,2]
[420206505,1775776267811,-500.0,0.00015999,2]
[420206506,1775776267847,-500.0,0.00015999,2]
[420206507,1775776267868,-500.0,0.00015999,2]
[420206508,1775776267881,-627.0,0.00015999,2]
[420206509,1775776267907,-500.0,0.00015999,2]
[420206510,1775776267941,-150.0,0.00015999,2]
[420206511,1775776267978,-158.0,0.00016,5]
[420206512,1775776267990,-28040.52900337,0.00016,2]
[420206513,1775776269826,-30.21621258,0.00015488,2]
[420206514,1775776269856,-1403.01106642,0.00015488,2]
[420206515,1775776269871,-596.98980755,0.00016,2]
[420206516,1775776270481,-931.48943093,0.00014021,2]
[420206517,1775776270500,-3121.46722925,0.00014021,2]
[420206518,1775776270511,-721.866635,0.00015177,2]
[420206519,1775776270522,-408.067147,0.00015177,2]
[420206520,1775776270533,-532.648018,0.00015488,2]
[420206521,1775776270542,-721.866635,0.00015488,2]
[420206522,1775776270553,-408.067147,0.00015488,2]
[420206523,1775776270563,-1433.227279,0.00015693,2]
[420206524,1775776270572,-532.648018,0.00015693,2]
[420206525,1775776270582,-721.866635,0.00015693,2]
[420206526,1775776270592,-408.067147,0.00015693,2]
[420206527,1775776270601,-408.067147,0.000159,2]
[420206528,1775776270612,-1433.227279,0.000159,2]
[420206529,1775776270622,-532.648018,0.000159,2]
[420206530,1775776270631,-721.866635,0.000159,2]
[420206531,1775776270641,-1449.704232,0.00015998,2]
[420206532,1775776270652,-408.067147,0.00015998,2]
[420206533,1775776270663,-1433.227282,0.00015998,2]
[420206534,1775776270674,-532.648028,0.00015998,2]
[420206535,1775776270688,-721.866635,0.00015998,2]
[420206536,1775776270697,-342953.8857069,0.00016,2]
[420206537,1775776270715,-500.0,0.00016,2]
[420206538,1775776270736,-2722.93999999,0.00016,2]
[420206539,1775776270761,-1258.57457499,0.00016,2]
[420206540,1775776270787,-44256.89146375,0.00016,2]
[420206541,1775776270811,-2122.85360847,0.00016,2]
[420206542,1775776270825,-1016.49353724,0.00016,2]
[420206543,1775776270885,-4799.5887045,0.00016,2]
[420206544,1775776271046,-699.00640981,0.00015177,2]
[420206545,1775776271065,-22.86022519,0.00015177,2]
[420206546,1775776271074,-408.067147,0.000159,2]
[420206547,1775776271084,-296393.29296954,0.00016,2]
[420206548,1775776271105,-4304.34282013,0.00016,2]
[420206549,1775776271116,-1749.51774443,0.00016,2]
[420206550,1775776271719,-1491.0531756,0.00013782,2]
[420206551,1775776271729,-408.067147,0.00015177,2]
[420206552,1775776271746,-721.866635,0.00015177,2]
[420206553,1775776271763,-721.866635,0.00015177,2]
[420206554,1775776271772,-182.803392,0.00015296,7]
[420206555,1775776271782,-721.866635,0.00015488,2]
[420206556,1775776271791,-408.067147,0.00015488,2]
[420206557,1775776271805,-721.866635,0.00015488,2]
[420206558,1775776271820,-721.866635,0.00015488,2]
[420206559,1775776271829,-721.866635,0.00015693,2]
[420206560,1775776271839,-408.067147,0.00015693,2]
[420206561,1775776271849,-721.866635,0.00015693,2]
[420206562,1775776271864,-721.866635,0.000159,2]
[420206563,1775776271876,-408.067147,0.000159,2]
[420206564,1775776271885,-315.16771632,0.000159,2]
[420206565,1775776271903,-406.69891868,0.000159,2]
[420206566,1775776271913,-93.30108132,0.00015998,2]
[420206567,1775776271930,-314.76606568,0.00015998,2]
[420206568,1775776271957,-404.67393432,0.00015998,2]
[420206569,1775776271985,-317.19270068,0.00015998,2]
[420206570,1775776271994,-408.067153,0.00015998,2]
[420206571,1775776272010,-721.866635,0.00015998,2]
[420206572,1775776272022,-8395.88353324,0.00016,2]
[420206573,1775776272043,-10023.07459228,0.00016,2]
[420206574,1775776272058,-2928.4638173,0.00016,2]
[420206575,1775776272070,-12983.53437663,0.00016,2]
[420206576,1775776272081,-7002.32540804,0.00016,2]
[420206577,1775776272092,-24493.96644416,0.00016,2]
[420206578,1775776272110,-721.866635,0.00015693,2]
[420206579,1775776272120,-12284.15522803,0.00016,2]
[420206580,1775776272135,-5577.41348923,0.00016,2]
[420206581,1775776272145,-10169.62952678,0.00016,2]
[420206585,1775777375974,200.8,7.067e-05,2]
[420206590,1775777432055,-382.07801997,0.00012972,2]
[420206593,1775777432066,-344.83417404,0.00012973,2]
[420206595,1775777432083,-2232.7,0.00012973,2]
[420206599,1775777432123,-1700.23783598,0.00012973,2]
[420206600,1775777432692,-491.75,0.00012973,2]
[420206601,1775777432707,-498.60816711,0.00012973,2]
[420206602,1775777432727,-362.36399931,0.00012973,2]
[420206612,1775777440757,-1731.33374054,0.00012973,2]
[420206613,1775777440796,-3532.0,0.00012973,2]
[420206614,1775777441228,-482.5225775,0.00012973,2]
[420206615,1775777441253,-516.37206645,0.00012973,2]
[420206616,1775777441271,-47200.79023907,0.00012973,2]
[420206617,1775777441284,-195.0,0.00013036,2]
[420206618,1775777441304,-506.0,0.000131,2]
[420206619,1775777441383,-500.0,0.00013598,2]
[420206620,1775777441394,-2187.5745,0.00013599,2]
[420206621,1775777441438,-1200.0,0.00013697,2]
[420206622,1775777441448,-300.0,0.00013697,2]
[420206623,1775777441475,-500.0,0.00013698,2]
[420206624,1775777441486,-489.378,0.00013698,2]
[420206625,1775777441499,-518.75523557,0.00013698,2]
[420206627,1775777441512,-500.0,0.00013698,2]
[420206629,1775777441525,-249.7,0.00013698,2]
[420206631,1775777441540,-150.0,0.00013699,2]
[420206633,1775777441566,-166.66,0.00013699,2]
[420206635,1775777441584,-150.0,0.000139,2]
[420206637,1775777441601,-166.66,0.00013954,2]
[420206639,1775777441645,-249.7,0.00013972,2]
[420206640,1775777441664,-150.0,0.00013973,2]
[420206643,1775777441680,-484.0,0.00013989,2]
[420206644,1775777441713,-223.42067851,0.00014017,2]
[420206646,1775777441729,-160.0,0.00014097,2]
[420206648,1775777441740,-327.46,0.0001411,2]
[420206650,1775777441757,-1777.59,0.00014113,2]
[420206652,1775777441771,-1852.42,0.00014129,2]
[420206654,1775777441780,-200.8,0.00014134,2]
[420206656,1775777441791,-3174.8,0.00014136,2]
[420206659,1775777441806,-1651.09,0.00014139,2]
[420206661,1775777441819,-159.09,0.00014141,2]
[420206662,1775777441831,-200.0,0.00014145,2]
[420206665,1775777441845,-2473.97,0.00014156,2]
[420206683,1775777442297,-884.58,0.00014167,2]
[420206686,1775777442328,-812.5232,0.00014169,2]
[420206688,1775777442337,-150.0,0.0001419,2]
[420206690,1775777442352,-479.93,0.0001419,2]
[420206692,1775777442362,-166.66,0.00014209,2]
[420206694,1775777442371,-1227.64,0.00014215,2]
[420206696,1775777442382,-249.72,0.00014246,2]
[420206698,1775777442393,-150.0,0.00014247,2]
[420206700,1775777442402,-500.0,0.00014262,2]
[420206702,1775777442411,-2500.0,0.00014269,2]
[420206704,1775777442421,-1791.33860065,0.00014269,2]
[420206705,1775777442434,-205.05379749,0.00014269,2]
[420206706,1775777442443,-195.0,0.00014269,2]
[420206707,1775777442452,-250.0,0.00014269,2]
[420206708,1775777442461,-500.0,0.00014269,2]
[420206709,1775777442480,-500.0,0.00014324,2]
[420206710,1775777442490,-2500.0,0.00014324,2]
[420206711,1775777442500,-2500.0,0.00014324,2]
[420206712,1775777442515,-2500.0,0.00014324,2]
[420206713,1775777442526,-2500.0,0.00014324,2]
[420206714,1775777442540,-300.0,0.00014324,2]
[420206715,1775777442565,-300.0,0.00014324,2]
[420206716,1775777442610,-300.0,0.00014324,2]
[420206718,1775777442634,-300.0,0.00014324,2]
[420206719,1775777442680,-300.0,0.00014324,2]
[420206722,1775777442690,-201.07,0.00014364,2]
[420206724,1775777442727,-500.0,0.00014379,2]
[420206725,1775777442737,-500.0,0.00014379,2]
[420206726,1775777442766,-500.0,0.00014379,2]
[420206727,1775777442777,-500.0,0.00014379,2]
[420206728,1775777442816,-162.0,0.000144,2]
[420206729,1775777442853,-1570.0,0.000144,2]
[420206730,1775777442876,-500.0,0.00014433,2]
[420206732,1775777442887,-500.0,0.00014433,2]
[420206735,1775777442927,-506.0,0.00014438,3]
[420206737,1775777442974,-166.66,0.00014465,2]
[420206739,1775777442988,-166.66,0.0001472,2]
[420206741,1775777443010,-39104.91,0.00014737,2]
[420206742,1775777443025,-2000.0,0.00014821,2]
[420206745,1775777443035,-884.58,0.00014875,2]
[420206748,1775777443060,-166.66,0.00014975,2]
[420206749,1775777443073,-1000.0,0.00014981,2]
[420206750,1775777443098,-1047.78857775,0.00015,2]
[420206751,1775777443109,-420.0,0.0001501,2]
[420206752,1775777443124,-162.0,0.0001504,2]
[420206753,1775777443143,-480.0,0.00015067,2]
[420206754,1775777443153,-493.54914906,0.00015068,2]
[420206755,1775777443169,-175.3153,0.000151,2]
[420206756,1775777443188,-1940.0,0.00015177,2]
[420206757,1775777443201,-500.0,0.00015177,2]
[420206758,1775777443222,-500.0,0.00015177,2]
[420206759,1775777443231,-500.0,0.00015177,2]
[420206760,1775777443244,-369.59889346,0.00015177,2]
[420206761,1775777443259,-150.0,0.00015177,2]
[420206762,1775777443282,-578.20924308,0.00015199,2]
[420206763,1775777443292,-500.0,0.00015199,2]
[420206764,1775777443307,-601.3376128,0.00015199,2]
[420206765,1775777443318,-1235.18214925,0.00015199,2]
[420206766,1775777443339,-7965.41053268,0.00015199,2]
[420206767,1775777443349,-200.0,0.00015199,2]
[420206768,1775777443358,-151.0,0.00015199,2]
[420206769,1775777443376,-743.50770149,0.00015199,2]
[420206770,1775777443392,-174.61919141,0.00015199,2]
[420206771,1775777443421,-599.60298507,0.00015199,2]
[420206772,1775777443439,-411.57624402,0.00015199,2]
[420206773,1775777443450,-299.37,0.0001525,2]
[420206774,1775777443464,-500.0,0.00015254,2]
[420206775,1775777443474,-4933.07410202,0.00015254,2]
[420206776,1775777443493,-151.0,0.00015254,2]
[420206777,1775777443508,-500.0,0.00015309,2]
[420206778,1775777443521,-151.0,0.00015309,2]
[420206779,1775777443541,-255.0,0.00015311,2]
[420206780,1775777443551,-275.25610977,0.0001532,2]
[420206781,1775777443580,-286.26522124,0.0001532,2]
[420206782,1775777443591,-500.0,0.00015364,2]
[420206783,1775777443621,-500.0,0.00015419,2]
[420206784,1775777443631,-693.9372,0.00015429,2]
[420206785,1775777443641,-500.0,0.00015474,2]
[420206786,1775777443654,-208.088148,0.00015528,7]
[420206787,1775777443667,-500.0,0.00015529,2]
[420206788,1775777443676,-1500.0,0.00015529,2]
[420206789,1775777443686,-160.0,0.00015549,2]
[420206790,1775777443699,-818.373297,0.00015549,2]
[420206791,1775777443713,-1476.746595,0.00015549,2]
[420206792,1775777443723,-1138.28964567,0.00015551,2]
[420206793,1775777443738,-500.0,0.00015562,2]
[420206794,1775777443748,-161.425957,0.00015582,7]
[420206795,1775777443757,-160.0,0.00015582,2]
[420206796,1775777443772,-901.931087,0.00015582,2]
[420206797,1775777443782,-1643.862175,0.00015582,2]
[420206798,1775777443791,-884.58,0.00015583,2]
[420206799,1775777443803,-500.0,0.00015584,2]
[420206800,1775777443812,-500.0,0.00015639,2]
[420206801,1775777443823,-250.0,0.00015649,2]
[420206802,1775777443833,-225.07940314,0.00015659,2]
[420206803,1775777443845,-500.0,0.00015694,2]
[420206805,1775777443856,-168.0,0.00015713,2]
[420206807,1775777443865,-1264.0,0.00015733,2]
[420206809,1775777443875,-1218.0,0.00015733,2]
[420206811,1775777443885,-926.0,0.00015733,2]
[420206812,1775777443894,-1347.0,0.00015733,2]
[420206813,1775777443906,-3524.0,0.00015733,2]
[420206814,1775777443915,-1637.16640345,0.00015744,2]
[420206815,1775777443925,-200.0,0.00015747,2]
[420206816,1775777443938,-1000.0,0.00015748,2]
[420206817,1775777443950,-500.0,0.00015749,2]
[420206818,1775777443959,-225.0,0.00015751,2]
[420206819,1775777443970,-662.3915392,0.00015755,2]
[420206820,1775777443980,-350.0,0.00015756,3]
[420206821,1775777443991,-1637.16640339,0.00015761,2]
[420206822,1775777444001,-506.0,0.00015776,4]
[420206823,1775777444017,-1033.0,0.00015778,2]
[420206824,1775777444027,-1637.16640339,0.00015779,2]
[420206826,1775777444036,-168.0,0.0001578,2]
[420206828,1775777444053,-1637.16640339,0.00015796,2]
[420206829,1775777444063,-529.61594557,0.000158,2]
[420206830,1775777444075,-2762.40111656,0.000158,2]
[420206831,1775777444093,-1447.365,0.00015801,2]
[420206832,1775777444118,-500.0,0.00015804,2]
[420206833,1775777444128,-529.61594552,0.00015811,2]
[420206834,1775777444165,-2762.40111655,0.00015814,2]
[420206835,1775777444180,-529.61594552,0.00015822,2]
[420206836,1775777444211,-1672.81209476,0.00015829,2]
[420206837,1775777444263,-1089.58902179,0.00015829,2]
[420206838,1775777444275,-529.61594552,0.00015833,2]
[420206839,1775777444285,-1995.3171505,0.00015843,2]
[420206840,1775777444305,-767.08396605,0.00015843,2]
[420206841,1775777444327,-32.4784968,0.00015844,2]
[420206842,1775777444394,-497.13744872,0.00015844,2]
[420206843,1775777444404,-529.61594552,0.00015856,2]
[420206844,1775777444418,-2175.03045742,0.00015857,2]
[420206845,1775777444437,-587.37065913,0.00015857,2]
[420206846,1775777444447,-500.0,0.00015859,2]
[420206847,1775777444460,-529.61594552,0.00015867,2]
[420206848,1775777444476,-464.90723168,0.00015871,2]
[420206849,1775777444487,-2297.49388487,0.00015871,2]
[420206850,1775777444510,-500.0,0.00015872,2]
[420206851,1775777444526,-200.0,0.00015872,2]
[420206852,1775777444539,-529.61594552,0.00015878,2]
[420206853,1775777444563,-791.06639954,0.00015886,2]
[420206854,1775777444579,-643.14081215,0.00015886,2]
[420206855,1775777444635,-463.04172306,0.00015886,2]
[420206856,1775777444683,-865.1521818,0.00015886,2]
[420206857,1775777444702,-529.61594552,0.00015889,2]
[420206858,1775777444723,-478.02681604,0.00015898,2]
[420206859,1775777444754,-500.0,0.00015898,2]
[420206860,1775777444787,-500.0,0.00015898,2]
[420206861,1775777444813,-500.0,0.00015899,2]
[420206862,1775777444826,-500.0,0.00015899,2]
[420206863,1775777444843,-500.0,0.00015899,2]
[420206864,1775777444852,-500.0,0.00015899,2]
[420206865,1775777444873,-316.43397972,0.00015899,2]
[420206866,1775777444882,-500.0,0.00015899,2]
[420206867,1775777444895,-500.0,0.00015899,2]
[420206868,1775777444904,-500.0,0.00015899,2]
[420206869,1775777444915,-500.0,0.00015899,2]
[420206870,1775777444924,-500.0,0.00015899,2]
[420206871,1775777444935,-500.0,0.00015899,2]
[420206872,1775777444944,-500.0,0.00015899,2]
[420206873,1775777444957,-500.0,0.00015899,2]
[420206874,1775777444966,-500.0,0.00015899,2]
[420206875,1775777444978,-500.0,0.00015899,2]
[420206876,1775777444988,-500.0,0.00015899,2]
[420206877,1775777445005,-500.0,0.00015899,2]
[420206878,1775777445017,-362.97389197,0.00015899,2]
[420206879,1775777445035,-500.0,0.00015899,2]
[420206880,1775777445075,-500.0,0.00015899,2]
[420206881,1775777445305,-500.0,0.00015899,2]
[420206882,1775777445330,-500.0,0.00015899,2]
[420206883,1775777445345,-500.0,0.00015899,2]
[420206884,1775777445372,-500.0,0.00015899,2]
[420206885,1775777445388,-500.0,0.00015899,2]
[420206886,1775777445399,-500.0,0.00015899,2]
[420206887,1775777445412,-500.0,0.00015899,2]
[420206888,1775777445422,-500.0,0.00015899,2]
[420206889,1775777445433,-500.0,0.00015899,2]
[420206890,1775777445443,-500.0,0.00015899,2]
[420206891,1775777445456,-500.0,0.00015899,2]
[420206892,1775777445465,-500.0,0.00015899,2]
[420206893,1775777445483,-500.0,0.00015899,2]
[420206894,1775777445492,-500.0,0.00015899,2]
[420206895,1775777445502,-500.0,0.00015899,2]
[420206896,1775777445523,-500.0,0.00015899,2]
[420206897,1775777445532,-500.0,0.00015899,2]
[420206898,1775777445551,-500.0,0.00015899,2]
[420206899,1775777445563,-500.0,0.00015899,2]
[420206900,1775777445596,-500.0,0.00015899,2]
[420206901,1775777445619,-500.0,0.00015899,2]
[420206902,1775777445633,-550.0,0.00015899,2]
[420206903,1775777445660,-500.0,0.00015899,2]
[420206904,1775777445685,-541.66,0.00015899,2]
[420206905,1775777445697,-28633.53438789,0.000159,2]
[420206906,1775777445719,-1906.31029911,0.000159,2]
[420206907,1775777445750,-3583.35,0.000159,2]
[420206908,1775777445769,-340.14948378,0.000159,2]
[420206909,1775777445781,-1743.82288555,0.000159,2]
[420206910,1775777445810,-1790.275,0.000159,2]
[420206913,1775777445954,-622.0,0.0001554,2]
[420206914,1775777445964,-192.68123364,0.000159,2]
[420206915,1775777445978,-602.56108479,0.000159,2]
[420206916,1775777445991,-1248.231692,0.000159,2]
[420206917,1775777446012,-1637.16640339,0.00015813,2]
[420206918,1775777446021,-81379.76381774,0.000159,2]
[420206919,1775777446033,-8504.61288848,0.000159,2]
[420206920,1775777446058,-794.15347412,0.000159,2]
[420206921,1775777446070,-410.32677016,0.000159,2]
[420206922,1775777446083,-143745.13091694,0.000159,2]
[420206923,1775777446104,-64229.2600658,0.000159,2]
[420206924,1775777446113,-285.5847,0.000159,2]
[420206925,1775777446127,-1000.0,0.000159,2]
[420206926,1775777446139,-916.67681746,0.000159,2]
[420206927,1775777446157,-1000.0,0.000159,2]
[420206928,1775777446167,-177.4914121,0.000159,2]
[420206929,1775777446176,-150.0,0.000159,2]
[420206930,1775777446197,-5000.0,0.000159,2]
[420206931,1775777446206,-151.87415982,0.000159,2]
[420206932,1775777446231,-529.61594552,0.000159,2]
[420206933,1775777446240,-261.11070627,0.000159,2]
[420206934,1775777446266,-150.0,0.000159,2]
[420206935,1775777446275,-2762.40111655,0.000159,2]
[420206936,1775777446290,-158.0,0.000159,5]
[420206937,1775777446300,-500.0,0.00015973,2]
[420206938,1775777446309,-500.0,0.00015973,2]
[420206939,1775777446320,-500.0,0.00015973,2]
[420206940,1775777446347,-189.95993746,0.00015973,2]
[420206941,1775777446357,-500.0,0.00015973,2]
[420206942,1775777446367,-500.0,0.00015973,2]
[420206943,1775777446386,-500.0,0.00015973,2]
[420206944,1775777446396,-500.0,0.00015973,2]
[420206945,1775777446405,-236.08451023,0.00015984,2]
[420206946,1775777446420,-164.59431534,0.00015984,2]
[420206947,1775777446440,-157.889054,0.00015984,2]
[420206948,1775777446449,-150.0,0.00015984,2]
[420206949,1775777446469,-48411.8589039,0.0001599,2]
[420206950,1775777446496,-1068.756596,0.0001599,2]
[420206951,1775777446508,-1033.0,0.00015992,2]
[420206952,1775777446534,-151.0,0.00015997,2]
[420206953,1775777446560,-150.0,0.00015999,2]
[420206954,1775777446571,-500.0,0.00015999,2]
[420206955,1775777446588,-500.0,0.00015999,2]
[420206956,1775777446604,-157.46,0.00015999,2]
[420206957,1775777446615,-500.0,0.00015999,2]
[420206958,1775777446630,-500.0,0.00015999,2]
[420206959,1775777446651,-177.15302889,0.00015999,2]
[420206960,1775777446664,-150.0,0.00015999,2]
[420206961,1775777446683,-150.0,0.00015999,2]